[Event "FIDE WSCC 50 2022"]
[Site "Assisi"]
[Date "2022.11.20"]
[Round "6.5"]
[White "Berend, Elvira"]
[Black "Pavlovic, Milos"]
[Result "0-1"]
[ECO "E11"]
[WhiteElo "2280"]
[BlackElo "2447"]
[Annotator "TA"]
[PlyCount "76"]
[EventDate "2022.11.14"]
[EventType "swiss"]
[EventCountry "ITA"]
[SourceTitle "playchess.com"]
[Source "ChessBase"]
[SourceQuality "1"]
[TimeControl "40/5400+30:1800+30"]

{[%evp 17,76,5,16,0,0,5,11,-19,11,-7,0,-14,14,0,0,0,0,0,16,18,8,-20,0,0,4,7,8,0,20,15,0,14,4,0,4,0,-7,-27,0,-17,-19,-9,0,0,0,0,0,-10,-22,-196,-198,-192,-189,-198,-190,-235,-222,-29988,-29989,-6175,-3565]} 1. d4 {[%emt 0:00:30]} Nf6 {[%emt 0:00:18]} 2. c4 {[%emt 0:00:15]} e6 {[%emt 0:00:48]} 3. Nf3 {[%emt 0:00:54]} Bb4+ {[%emt 0:09:31]} 4. Bd2 {[%emt 0:02:54][%cal Bc1d2,Bd2g5,Bg5f4][%mdl 32]} a5 {[%emt 0:00:12]} 5. g3 {[%emt 0:00:42]} d6 {[%emt 0:02:27]} 6. Bg2 {[%emt 0:00:35]} Nbd7 {[%emt 0:00:07]} 7. O-O {[%emt 0:00:44]} e5 {[%emt 0:00:05]} 8. Bg5 {[%emt 0:02:33]} exd4 {[%emt 0:00:12]} 9. Nxd4 {[%emt 0:00:22]} O-O {[%emt 0:00:40]} 10. a3 {[%emt 0:01:20] E11: Bogo-Indian.} Bc5 {[%emt 0:00:07]} 11. Nc3 {[%emt 0:00:24]} h6 {[%emt 0:00:06]} 12. Bf4 {[%emt 0:01:28] The position is equal.} Re8 {[%emt 0:05:42][%cal Oa5a4]} (12... a4 {seems wilder.} 13. Nf5 Nb6 14. Qd3 Re8) 13. b3 {[%emt 0:04:13]} Ne5 {[%emt 0:04:44]} 14. Nc2 {[%emt 0:01:36]} c6 {[%emt 0:16:43] [#]} 15. Na4 $146 {[%emt 0:12:01]} ({Predecessor:} 15. b4 Bb6 16. b5 Bd7 17. Bxe5 dxe5 18. Rb1 Rc8 19. bxc6 Bxc6 20. Bxc6 Rxc6 21. Nd5 Rxc4 22. Rxb6 Qxd5 {0-1 (44) Xiao,Y (2331)-Zhai,M (2343) Tianjin 2018}) 15... Ba7 {[%emt 0:03:33]} 16. Be3 {[%emt 0:04:06]} Bxe3 {[%emt 0:01:52]} 17. Nxe3 {[%emt 0:00:06]} Neg4 {[%emt 0:08:33]} 18. Nxg4 {[%emt 0:00:51]} Bxg4 {[%emt 0:00:05]} 19. Nc3 {[%emt 0:02:12]} Qb6 {[%emt 0:01:29]} 20. Qc2 {[%emt 0:01:48]} Qc5 {[%emt 0:03:23]} 21. Qd2 {[%emt 0:02:58]} Qb6 {[%emt 0:04:47]} 22. Rab1 {[%emt 0:02:28]} Bf5 {[%emt 0:00:12]} 23. Rb2 {[%emt 0:00:06]} Qc5 {[%emt 0:00:23]} 24. Ra2 {[%emt 0:02:25]} Rad8 {[%emt 0:11:15]} 25. e3 {[%emt 0:03:55]} (25. Rd1 {is more complex.} Qb6 26. Qb2 Ng4 27. e3) 25... Be6 {[%emt 0:03:04]} 26. Raa1 {[%emt 0:08:42]} d5 {[%emt 0:01:32]} 27. Na4 {[%emt 0:13:33]} Qa7 {[%emt 0:03:19]} (27... Qe7 $5 {[%cal Rd5c4]} 28. c5 d4 29. exd4 Bxb3 $15) 28. cxd5 {[%emt 0:06:25]} Bxd5 {[%emt 0:07:09]} 29. Qc2 {[%emt 0:00:14]} Bxg2 {[%emt 0:00:27]} 30. Kxg2 {[%emt 0:00:06]} Qb8 {[%emt 0:03:26]} 31. Rad1 {[%emt 0:00:28]} Qe5 {[%emt 0:00:16]} 32. Rxd8 {[%emt 0:01:37]} Rxd8 {[%emt 0:00:01]} 33. Rd1 $2 {[%emt 0:01:18] Prevents Qd5+. This costs White the game.} (33. Nc5 $11 {and White has nothing to worry.}) 33... Rxd1 $19 {[%emt 0:02:41]} 34. Qxd1 {[%emt 0:00:05] [#]} b5 $1 {[%emt 0:01:14]} 35. Qd8+ {[%emt 0:04:30]} Kh7 {[%emt 0:00:07]} 36. Nb6 {[%emt 0:00:11]} Qe4+ {[%emt 0:00:45]} 37. Kh3 $2 {[%emt 0:04:41]} (37. Kf1 $19) 37... Ng4 {[%emt 0:01:17][%cal Rg4f2]} 38. Qd2 {[%emt 0:03:00]} Qf3 {[%emt 0:00:12] Weighted Error Value: White=0.40/Black=0.05 (flawless)} ({Not} 38... Qf5 39. Kg2 $17) 0-1

[Event "FIDE WSCC 50 2022"]
[Site "Assisi"]
[Date "2022.11.20"]
[Round "6.6"]
[White "Dishman, Stephen"]
[Black "Antic, Dejan"]
[Result "1/2-1/2"]
[ECO "A30"]
[WhiteElo "2255"]
[BlackElo "2412"]
[Annotator "TA"]
[PlyCount "47"]
[EventDate "2022.11.14"]
[EventType "swiss"]
[EventCountry "ITA"]
[SourceTitle "playchess.com"]
[Source "ChessBase"]
[SourceQuality "1"]
[TimeControl "40/5400+30:1800+30"]

{[%evp 16,47,25,22,48,43,58,39,45,27,102,52,137,35,42,41,32,43,43,43,49,35,60,56,120,92,114,122,116,18,54,27,80,80]} 1. Nf3 {[%emt 0:00:02]} Nf6 {[%emt 0:01:32]} 2. c4 {[%emt 0:00:10]} g6 {[%emt 0:01:07]} 3. b3 {[%emt 0:00:08]} Bg7 {[%emt 0:03:58]} 4. Bb2 {[%emt 0:00:07]} O-O {[%emt 0:01:41]} 5. g3 {[%emt 0:00:06]} d6 {[%emt 0:01:45]} 6. d4 {[%emt 0:00:08]} b6 {[%emt 0:04:16]} 7. Bg2 {[%emt 0:00:47]} Bb7 {[%emt 0:00:08]} 8. O-O {[%emt 0:02:02]} c5 {[%emt 0:00:46]} 9. Nc3 {[%emt 0:09:07]} a6 {[%emt 0:04:15] A30: Symmetrical English: Double Fianchetto and Hedgehog.} 10. d5 {[%emt 0:01:33]} b5 {[%emt 0:01:54] [#]} 11. Nd2 $146 {[%emt 0:01:55]} ({Predecessor:} 11. Qc2 Nbd7 12. Nd2 Rb8 13. Rab1 Bc8 14. h3 b4 15. Nd1 e5 16. e4 h5 17. Nf3 {0-1 (40) Karatorossian,D (2345)-Zvjaginsev,V (2641) Ubeda 2000}) 11... Nbd7 {[%emt 0:02:31] White is slightly better.} 12. e4 {[%emt 0:06:39]} Nb6 {[%emt 0:10:09]} (12... b4 $11) 13. a4 {[%emt 0:05:42]} (13. cxb5 $16 Nfd7 14. a4) 13... Nfd7 {[%emt 0:13:53]} ({Better is} 13... b4 $14) 14. a5 {[%emt 0:07:40]} (14. cxb5 $16 {And now a5 would win.} axb5 15. axb5) 14... b4 $14 {[%emt 0:01:51]} 15. Na4 {[%emt 0:00:50]} Nxa4 {[%emt 0:01:13]} 16. Bxg7 {[%emt 0:00:09]} Kxg7 {[%emt 0:00:11]} ({Not} 16... Nc3 17. Bxc3 bxc3 18. Nb1 $16) 17. Rxa4 {[%emt 0:00:12]} e5 {[%emt 0:04:28]} 18. Ra2 {[%emt 0:03:31]} h5 {[%emt 0:02:03]} 19. f4 {[%emt 0:10:07][%cal Bf2f4,Bf4f5][%mdl 32]} h4 {[%emt 0:01:14]} (19... Qe7 $14) 20. Nf3 $16 {[%emt 0:06:07]} hxg3 {[%emt 0:00:58]} 21. hxg3 {[%emt 0:00:50]} Qe7 {[%emt 0:04:20]} 22. Re2 {[%emt 0:05:14]} (22. Bh3 $16) 22... Rae8 {[%emt 0:04:08]} 23. Qd2 {[%emt 0:07:27] Strongly threatening Bh3.} Bc8 {[%emt 0:09:35]} (23... Rh8 $11) 24. f5 {[%emt 0:31:57] Weighted Error Value: White=0.33/Black=0.33} 1/2-1/2

[Event "FIDE WSCC 50 2022"]
[Site "Assisi"]
[Date "2022.11.20"]
[Round "6.7"]
[White "Bellia, Fabrizio"]
[Black "de Francesco, Klaus"]
[Result "1/2-1/2"]
[ECO "C03"]
[WhiteElo "2398"]
[BlackElo "2171"]
[Annotator "TA"]
[PlyCount "36"]
[EventDate "2022.11.14"]
[EventType "swiss"]
[EventCountry "ITA"]
[SourceTitle "playchess.com"]
[Source "ChessBase"]
[SourceQuality "1"]
[TimeControl "40/5400+30:1800+30"]

{[%evp 9,36,23,18,34,36,29,33,31,30,41,45,38,85,57,37,13,9,11,24,-68,-68,-46,-44,-136,-136,-139,-137,-159,-120]} 1. e4 {[%emt 0:00:05]} e6 {[%emt 0:00:06]} 2. d4 {[%emt 0:00:03]} d5 {[%emt 0:00:05]} 3. Nd2 {[%emt 0:00:04]} Be7 {[%emt 0:00:06]} 4. e5 {[%emt 0:00:13]} c5 {[%emt 0:00:13]} 5. c3 {[%emt 0:00:04]} Nc6 {[%emt 0:00:29]} 6. Bd3 {[%emt 0:00:17] C03: French Tarrasch: Unusual Black 3rd moves.} Qb6 {[%emt 0:01:09]} 7. Ndf3 {[%emt 0:00:23]} Bd7 {[%emt 0:01:18][%cal Rc5d4]} 8. Ne2 {[%emt 0:00:13] White is slightly better.} cxd4 {[%emt 0:02:01]} 9. cxd4 {[%emt 0:00:23]} Nh6 {[%emt 0:02:54]} 10. O-O {[%emt 0:18:04] [#]} O-O-O $146 {[%emt 0:09:48]} (10... Nf5 $14 {feels stronger.}) ({Predecessor:} 10... Nf5 11. Kh1 Rc8 12. a3 Na5 13. b4 Nc4 14. g4 Nh6 15. h3 Ng8 16. Ng3 a5 17. bxa5 Qxa5 {½-½ (42) Calzetta Ruiz,M (2245)-Ibarra Jerez,J (2558) Seville 2019}) 11. Kh1 {[%emt 0:09:27]} Kb8 {[%emt 0:01:22]} 12. Be3 {[%emt 0:05:50]} Ng4 {[%emt 0:03:59]} 13. Bd2 {[%emt 0:01:05]} h5 {[%emt 0:00:26]} (13... Qxb2 $2 14. h3 Nb4 15. Bxb4 Nxf2+ 16. Rxf2 $18) 14. b4 {[%emt 0:08:58]} (14. Kg1 $11) 14... Nxb4 $15 {[%emt 0:02:57]} 15. Bxb4 {[%emt 0:01:14]} Qxb4 {[%emt 0:00:55]} (15... Bxb4 $2 16. Rb1 $18) 16. Kg1 {[%emt 0:01:57] [#]} (16. a4 $15) 16... Ba4 $1 $17 {[%emt 0:05:13] Black is clearly better.} 17. Qc1 {[%emt 0:04:36]} Rc8 {[%emt 0:02:06]} 18. Qf4 {[%emt 0:01:20]} Nh6 {[%emt 1:04:23] Weighted Error Value: White=0.27 (precise) /Black=0.05 (flawless)} 1/2-1/2

[Event "FIDE WSCC 50 2022"]
[Site "Assisi"]
[Date "2022.11.20"]
[Round "6.8"]
[White "Estremera Panos, Sergio"]
[Black "Sturua, Zurab"]
[Result "0-1"]
[ECO "B22"]
[WhiteElo "2259"]
[BlackElo "2522"]
[Annotator "TA"]
[PlyCount "80"]
[EventDate "2022.11.14"]
[EventType "swiss"]
[EventCountry "ITA"]
[SourceTitle "playchess.com"]
[Source "ChessBase"]
[SourceQuality "1"]
[TimeControl "40/5400+30:1800+30"]

{[%evp 22,80,11,0,12,-1,0,0,-18,0,12,0,-9,-25,-25,-21,-18,-27,-25,-30,-20,-34,-22,-31,-18,-48,-17,-12,-10,-23,-23,-30,-13,-12,-16,-17,-16,-17,-12,-19,-20,-20,-20,-35,-38,-34,-35,-41,-32,-48,-50,-44,0,-70,-66,-61,-19,-160,-165,-566,-543]} 1. d4 {[%emt 0:00:08]} Nf6 {[%emt 0:00:23]} 2. c4 {[%emt 0:00:18]} e6 {[%emt 0:00:21]} 3. Nc3 {[%emt 0:00:17]} Bb4 {[%emt 0:00:16]} 4. e3 {[%emt 0:00:31]} c5 {[%emt 0:01:02]} 5. Bd3 {[%emt 0:01:27]} Nc6 {[%emt 0:02:51]} 6. Nf3 {[%emt 0:03:44]} d5 {[%emt 0:06:41]} 7. cxd5 {[%emt 0:08:52]} Nxd5 {[%emt 0:03:36]} 8. Bd2 {[%emt 0:09:57]} cxd4 {[%emt 0:04:45]} 9. exd4 {[%emt 0:00:05]} Nf6 {[%emt 0:02:24]} 10. O-O {[%emt 0:15:32]} O-O {[%emt 0:05:41]} 11. Be3 {[%emt 0:05:58]} Be7 {[%emt 0:08:03]} 12. Rc1 {[%emt 0:04:21] 12.Qe2 gains popularity.} b6 {[%emt 0:03:47] B22: Sicilian: 2 c3.} 13. Ne4 {[%emt 0:03:52]} Bb7 {[%emt 0:07:20]} 14. Nxf6+ {[%emt 0:00:16]} Bxf6 {[%emt 0:00:06] The position is equal.} 15. Be4 {[%emt 0:05:00] [#]} Na5 $146 {[%emt 0:05:48][%cal Bc6a5,Ba5b7,Bb7d6,Bd6f5][%mdl 32]} ({Predecessor:} 15... Rc8 16. Qa4 Ba8 {½-½ (14) Florstedt,J (1911)-Neef,M (2278) Playchess.com INT 2011}) 16. Bxb7 {[%emt 0:05:53]} Nxb7 {[%emt 0:00:25]} 17. Qa4 {[%emt 0:00:05]} Nd6 {[%emt 0:08:45]} 18. Bf4 {[%emt 0:11:06]} Nf5 {[%emt 0:00:55][%cal Rf5d4]} 19. Rfd1 {[%emt 0:01:37]} Qd5 {[%emt 0:03:40]} 20. Be5 {[%emt 0:08:18]} Rfd8 {[%emt 0:01:42]} 21. Bxf6 {[%emt 0:01:24]} gxf6 {[%emt 0:00:08]} 22. h3 {[%emt 0:03:48]} a5 {[%emt 0:04:25]} 23. Qc6 {[%emt 0:03:36]} (23. Rc7 {keeps more tension.} Rac8 24. Qc2 Ne7 25. a3) 23... Rd6 {[%emt 0:05:37]} 24. Qxd5 {[%emt 0:00:12]} Rxd5 {[%emt 0:00:05]} 25. Rc6 {[%emt 0:02:24]} Rb5 {[%emt 0:00:49]} 26. Rd2 {[%emt 0:02:35]} Rd8 {[%emt 0:04:40]} 27. g3 {[%emt 0:00:19]} Kg7 {[%emt 0:01:28]} 28. Kg2 {[%emt 0:00:12]} Rd7 {[%emt 0:01:57]} 29. Kf1 {[%emt 0:00:28]} Ne7 {[%emt 0:05:37]} 30. Rc4 {[%emt 0:01:11]} Rbd5 {[%emt 0:03:48]} 31. Ke2 {[%emt 0:01:31]} Kf8 {[%emt 0:01:12]} 32. a4 {[%emt 0:00:30]} b5 {[%emt 0:02:28]} 33. axb5 {[%emt 0:00:05]} Rxb5 {[%emt 0:00:05]} 34. Rc5 {[%emt 0:00:40]} Rdb7 {[%emt 0:00:41]} 35. Rxb5 {[%emt 0:00:03]} Rxb5 $15 {[%emt 0:00:08] KRN-KRN} 36. Rc2 {[%emt 0:00:16]} Ke8 {[%emt 0:00:46]} 37. Ne1 {[%emt 0:01:42]} ({White should play} 37. Nd2 $11) 37... Nf5 {[%emt 0:00:44]} 38. Nf3 {[%emt 0:00:20]} Kd7 {[%emt 0:00:16] Black is more active.} 39. Kd3 {[%emt 0:00:49]} (39. g4 $11 {keeps the balance.} Nd6 40. Nd2) 39... Rb3+ $17 {[%emt 0:00:26]} 40. Ke2 $2 {[%emt 0:00:07] [#]} (40. Rc3 Rxb2 41. Nd2) 40... Rxf3 $1 {[%emt 0:06:39][%mdl 512] Weighted Error Value: White=0.32/Black=0.08 (flawless)} 0-1

[Event "FIDE WSCC 50 2022"]
[Site "Assisi"]
[Date "2022.11.20"]
[Round "6.9"]
[White "Michalek, Jan"]
[Black "Bischoff, Klaus"]
[Result "0-1"]
[ECO "B40"]
[WhiteElo "2251"]
[BlackElo "2479"]
[Annotator "TA"]
[PlyCount "66"]
[EventDate "2022.11.14"]
[EventType "swiss"]
[EventCountry "ITA"]
[SourceTitle "playchess.com"]
[Source "ChessBase"]
[SourceQuality "1"]
[TimeControl "40/5400+30:1800+30"]

{[%evp 9,66,-2,18,31,17,27,25,24,25,13,46,37,99,99,96,76,102,101,97,87,97,103,136,149,140,110,112,91,151,128,133,66,83,72,77,70,39,8,16,-165,-172,-174,-168,-350,-368,-412,-397,-406,-385,-648,-162,-468,-456,-532,-523,-667,-635,-1900,-1688]} 1. e4 {[%emt 0:00:03]} c5 {[%emt 0:00:30]} 2. Nf3 {[%emt 0:00:08]} e6 {[%emt 0:00:13]} 3. b3 {[%emt 0:00:13]} Nc6 {[%emt 0:02:35]} 4. Bb2 {[%emt 0:00:34]} a6 {[%emt 0:05:19]} 5. c4 {[%emt 0:00:25]} d6 {[%emt 0:02:22]} 6. d4 {[%emt 0:01:50] B40: Sicilian: 2...e6, Unusual lines.} cxd4 {[%emt 0:00:09]} 7. Nxd4 {[%emt 0:00:05]} Bd7 {[%emt 0:00:54]} 8. Nc3 {[%emt 0:01:45] White has an edge.} Nf6 {[%emt 0:00:22]} 9. g3 {[%emt 0:04:39] [#]} Qb6 $146 {[%emt 0:08:10]} ({Predecessor:} 9... Be7 10. Bg2 O-O 11. O-O Rc8 12. a4 Qb6 13. Nxc6 bxc6 14. a5 Qc7 15. Re1 c5 {½-½ (29) Krnan,T (2427)-Hua,E (2331) Mississauga 2018}) 10. Nc2 {[%emt 0:08:18]} Ne5 {[%emt 0:02:25] [#]} ({Black should play} 10... Be7 $14) 11. f4 $1 $16 {[%emt 0:07:22]} Ng6 {[%emt 0:00:38]} 12. Qe2 {[%emt 0:00:59]} h5 {[%emt 0:03:46]} 13. Bg2 {[%emt 0:01:13]} Be7 {[%emt 0:01:30]} 14. O-O-O {[%emt 0:03:24]} Qc7 {[%emt 0:03:28]} 15. Rhe1 {[%emt 0:12:36]} Rb8 {[%emt 0:05:06] [#]} 16. Kb1 $1 {[%emt 0:06:28]} b5 {[%emt 0:05:33]} 17. cxb5 {[%emt 0:05:21]} axb5 {[%emt 0:00:40]} 18. Nb4 {[%emt 0:00:30] Black must now prevent Na6.} Rb6 {[%emt 0:04:58] Prevents Na6.} (18... Rc8 $142) 19. a3 {[%emt 0:04:21] Hoping for e5.} O-O {[%emt 0:02:05]} 20. h3 {[%emt 0:03:05]} (20. Nca2 $16) 20... h4 $14 {[%emt 0:06:30]} 21. f5 {[%emt 0:08:14]} ({Much worse is} 21. e5 dxe5 22. fxe5 Bxb4 23. axb4 Nd5 24. Nxd5 (24. Bxd5 exd5 25. g4 Be6 $11) 24... exd5 25. Bxd5 Bf5+ 26. Be4 Bxe4+ 27. Qxe4 hxg3 $14) 21... Ne5 {[%emt 0:03:38]} 22. g4 {[%emt 0:00:10][%cal Bg3g4,Bg4g5][%mdl 32]} Rb7 {[%emt 0:05:06]} 23. g5 {[%emt 0:05:22]} Nh7 {[%emt 0:00:15]} 24. Ncd5 $2 {[%emt 0:06:40] This move loses the game for White.} exd5 $19 {[%emt 0:00:55]} 25. Nxd5 {[%emt 0:00:20]} Qd8 {[%emt 0:00:27]} 26. Bxe5 $2 {[%emt 0:00:50]} (26. g6 {keeps fighting.} fxg6 27. fxg6 Nxg6 28. e5 Bf5+ 29. Ka2) 26... dxe5 {[%emt 0:00:09]} 27. g6 {[%emt 0:00:12]} fxg6 {[%emt 0:04:52]} 28. fxg6 {[%emt 0:00:12]} Ng5 {[%emt 0:06:23]} 29. Qh5 $2 {[%emt 0:01:38]} (29. b4) 29... Be8 $2 {[%emt 0:02:41]} (29... Ra7 30. Rf1 Rxa3) 30. Rf1 $2 {[%emt 0:07:32]} (30. Nf6+ {nothing else works.} Bxf6 31. Rxd8 Bxd8 32. Rd1) 30... Rxf1 {[%emt 0:02:05] Black is clearly winning.} 31. Rxf1 {[%emt 0:01:42]} Qd6 {[%emt 0:01:17]} 32. Nxe7+ {[%emt 0:08:05]} Qxe7 {[%emt 0:00:13]} 33. Rf5 {[%emt 0:00:31]} Qxa3 {[%emt 0:00:25] Weighted Error Value: White=0.84/Black=0.36} 0-1

[Event "FIDE WSCC 50 2022"]
[Site "Assisi"]
[Date "2022.11.20"]
[Round "6.10"]
[White "Paschall, William"]
[Black "Arakhamia-Grant, Ketevan"]
[Result "1-0"]
[ECO "A86"]
[WhiteElo "2343"]
[BlackElo "2327"]
[Annotator "TA"]
[PlyCount "128"]
[EventDate "2022.11.14"]
[EventType "swiss"]
[EventCountry "ITA"]
[SourceTitle "playchess.com"]
[Source "ChessBase"]
[SourceQuality "1"]
[TimeControl "40/5400+30:1800+30"]

{[%evp 24,128,15,16,32,12,39,35,38,35,35,31,50,42,54,18,32,27,39,40,33,0,30,0,0,-25,8,0,1,-39,-35,-35,-35,-35,-35,-29,-24,-38,-21,-31,-31,-48,-17,-17,-17,-20,-21,-14,-14,-125,-32,-36,-35,-35,-14,-14,-12,-22,4,12,8,9,8,8,8,8,8,8,8,8,8,8,8,0,8,0,29,0,43,0,0,0,0,0,0,0,0,0,0,0,0,0,18,18,18,10,576,10,10,10,1602,1310,29967,29967,29969,29970,29976]} 1. d4 {[%emt 0:00:03]} f5 {[%emt 0:01:27]} 2. g3 {[%emt 0:00:52]} Nf6 {[%emt 0:00:13]} 3. Bg2 {[%emt 0:00:46]} g6 {[%emt 0:00:13]} 4. c4 {[%emt 0:01:17]} Bg7 {[%emt 0:00:10]} 5. Nc3 {[%emt 0:00:29]} O-O {[%emt 0:01:05]} 6. Nh3 {[%emt 0:01:09]} d6 {[%emt 0:00:30]} 7. d5 {[%emt 0:01:40]} c6 {[%emt 0:04:25]} 8. Nf4 {[%emt 0:02:55]} e5 {[%emt 0:02:12]} 9. dxe6 {[%emt 0:00:37]} Qe7 {[%emt 0:01:34]} 10. O-O {[%emt 0:13:34]} Na6 {[%emt 0:02:48]} 11. Rb1 {[%emt 0:18:35]} Bxe6 {[%emt 0:13:52]} 12. Nxe6 {[%emt 0:03:41]} Qxe6 {[%emt 0:01:17]} 13. b3 {[%emt 0:00:58]} Nc5 {[%emt 0:06:08] has lost popularity (13...Rad8). A86: Dutch Defence: Leningrad System: Unusual lines and 5 Nh3.} 14. Qc2 {[%emt 0:06:14]} Rfe8 {[%emt 0:10:43]} 15. e3 {[%emt 0:02:30]} Rad8 {[%emt 0:03:06] White is slightly better.} 16. Bb2 {[%emt 0:02:27]} Nce4 {[%emt 0:05:36]} 17. Rbd1 {[%emt 0:02:11] [#]} Kh8 $146 {[%emt 0:12:34]} ({Predecessor:} 17... a6 18. Nxe4 fxe4 19. Rd2 d5 20. Rfd1 Nh5 21. cxd5 cxd5 22. Bxg7 Kxg7 {½-½ (22) Mercadal Benejam,J (2515)-Van Kempen,H (2595) ICCF corr 2000}) 18. Ne2 {[%emt 0:02:53]} Rd7 {[%emt 0:11:37]} 19. b4 {[%emt 0:11:10]} a6 {[%emt 0:08:28]} (19... Ng4 {with more complications.} 20. Bd4 Bxd4 21. exd4 Qf7) 20. a3 {[%emt 0:03:00]} Qf7 {[%emt 0:01:04]} 21. Rd3 {[%emt 0:03:51]} d5 {[%emt 0:01:42]} 22. c5 {[%emt 0:02:30]} Rc7 {[%emt 0:00:56]} 23. Bd4 {[%emt 0:01:28]} Nd7 {[%emt 0:00:45]} 24. f3 {[%emt 0:00:38]} Nef6 {[%emt 0:01:20]} 25. Qc3 {[%emt 0:03:26]} Qe7 {[%emt 0:00:18]} 26. Rb1 {[%emt 0:02:44]} Ne5 {[%emt 0:01:04]} 27. Bxe5 {[%emt 0:00:19]} Qxe5 {[%emt 0:00:06]} 28. Qxe5 {[%emt 0:00:31]} Rxe5 {[%emt 0:00:07]} 29. Nd4 {[%emt 0:02:48]} Rce7 {[%emt 0:00:53]} 30. Nc2 {[%emt 0:01:14]} Nd7 {[%emt 0:00:47]} 31. Bf1 {[%emt 0:00:34]} R5e6 {[%emt 0:00:46][%cal Be5e6,Be6f6,Bf6f8,Bf8e8][%mdl 32] Strongly threatening ...Ne5.} 32. Rdb3 {[%emt 0:01:15]} Ne5 {[%emt 0:00:39]} 33. Nd4 {[%emt 0:00:23]} Rf6 {[%emt 0:01:26]} 34. Kf2 {[%emt 0:02:09]} Rf8 {[%emt 0:00:16]} 35. Rc1 {[%emt 0:00:30]} Rfe8 {[%emt 0:00:24]} 36. Be2 {[%emt 0:01:16] [#]} (36. Rd1 $11) 36... Nd7 {[%emt 0:00:24]} (36... Ng4+ $1 $17 {[%mdl 512]} 37. fxg4 Bxd4) 37. Rd1 $15 {[%emt 0:00:39]} Bh6 {[%emt 0:01:13][%cal Rh6e3]} 38. f4 {[%emt 0:00:23][%cal Oe2a6]} Nf6 {[%emt 0:00:31]} 39. Bf3 {[%emt 0:01:24]} Bg7 {[%emt 0:00:39]} 40. a4 {[%emt 0:01:39]} Ne4+ {[%emt 0:02:01]} 41. Bxe4 {[%emt 0:33:29] Threatens to win with Bg2.} Rxe4 {[%emt 0:30:51]} 42. b5 {[%emt 0:00:00]} axb5 {[%emt 0:00:00]} 43. axb5 {[%emt 0:00:00]} Bxd4 {[%emt 0:00:00]} 44. Rxd4 {[%emt 0:00:00]} Rxd4 {[%emt 0:00:00]} 45. exd4 $11 {[%emt 0:00:00][%mdl 4096] Endgame KR-KR} Re4 {[%emt 0:00:00]} 46. Rb4 {[%emt 0:00:00]} cxb5 {[%emt 0:00:00]} 47. Kf3 {[%emt 0:00:00]} Kg8 {[%emt 0:00:00]} 48. h3 {[%emt 0:00:00]} Kh8 {[%emt 0:04:34]} 49. g4 {[%emt 0:00:00]} Kg8 {[%emt 0:00:56]} 50. Kg3 {[%emt 0:00:00]} (50. g5 $5 {[%cal Rh3h4]}) 50... Kh8 {[%emt 0:01:31]} 51. Kh4 {[%emt 0:00:00]} ({But not} 51. Rxb5 Rxd4 52. gxf5 (52. Rxb7 Rc4 $14) 52... gxf5 $16) 51... fxg4 {[%emt 0:01:32]} 52. hxg4 {[%emt 0:00:00]} Rxf4 {[%emt 0:00:52]} 53. Kg5 {[%emt 0:00:00] Inhibits h5.} Rf7 {[%emt 0:00:28]} 54. Rxb5 {[%emt 0:00:00]} Kg7 {[%emt 0:00:11]} 55. Kh4 {[%emt 0:00:00]} Rf4 {[%emt 0:01:11]} 56. Rxb7+ {[%emt 0:00:29]} Kf6 {[%emt 0:00:10]} 57. Rb6+ {[%emt 0:01:20]} Kg7 {[%emt 0:00:48]} 58. Kg5 {[%emt 0:00:39] Prevents h5.} Rf7 {[%emt 0:00:18]} 59. Rd6 {[%emt 0:00:30]} h6+ {[%emt 0:00:11]} 60. Kh4 {[%emt 0:00:05]} Rf3 $1 {[%emt 0:00:32] ( -> ...g5+)} 61. g5 {[%emt 0:01:44]} (61. Rxd5 g5+ 62. Rxg5+ hxg5+ 63. Kxg5 Kf7 $19) 61... Rf4+ $2 {[%emt 0:01:36][%mdl 8192]} (61... hxg5+ $11 62. Kxg5 Rf5+ 63. Kg4 Kf7) 62. Kg3 $18 Rxd4 63. Rd7+ {[%mdl 64] Deflection} Kg8 {[#]} 64. c6 $1 ({Less strong is} 64. gxh6 Rc4 $16) 64... Kf8 {[%emt 0:01:30] Weighted Error Value: White=0.12 (very precise) /Black=0.22 (precise)} 1-0

[Event "FIDE WSCC 50 2022"]
[Site "Assisi"]
[Date "2022.11.20"]
[Round "6.10"]
[White "Paschall, William"]
[Black "Boulard, Eric"]
[Result "*"]
[ECO "A86"]
[WhiteElo "2343"]
[BlackElo "2185"]
[Annotator "TA"]
[PlyCount "44"]
[EventDate "2022.11.14"]
[EventType "swiss"]
[EventCountry "ITA"]
[SourceTitle "playchess.com"]
[Source "ChessBase"]
[SourceQuality "1"]
[TimeControl "40/5400+30:1800+30"]

{[%evp 24,26,18,8,15]} 1. d4 {[%emt 0:00:03]} f5 {[%emt 1:31:00]} 2. g3 {[%emt 0:00:52]} Nf6 {[%emt 1:30:03]} 3. Bg2 {[%emt 0:00:46]} g6 {[%emt 0:00:13]} 4. c4 {[%emt 0:01:17]} Bg7 {[%emt 1:30:37]} 5. Nc3 {[%emt 0:00:29]} O-O {[%emt 0:01:05]} 6. Nh3 {[%emt 1:30:03]} d6 {[%emt 0:00:30]} 7. d5 {[%emt 0:01:40]} c6 {[%emt 0:04:25]} 8. Nf4 {[%emt 0:02:55]} e5 {[%emt 0:02:12]} 9. dxe6 {[%emt 0:00:37]} Qe7 {[%emt 0:01:34]} 10. O-O {[%emt 1:25:42]} Na6 {[%emt 0:02:48]} 11. Rb1 {[%emt 0:18:35]} Bxe6 {[%emt 0:13:52]} 12. Nxe6 {[%emt 0:03:41]} Qxe6 {[%emt 0:01:17]} 13. b3 {[%emt 0:51:22]} Nc5 {[%emt 0:06:08] [#] Not much happened in this game.  is the legacy move (13...Rad8). A88: Dutch Defence: Leningrad System: 5 Nf3 0-0 6 0-0 d6 7 Nc3 c6.} {Predecessor:} 14. Bb2 $146 Rad8 15. e3 Ng4 16. Qe2 Ne4 17. Nd1 Ne5 18. Nc3 Nd7 19. Rbc1 g5 20. Qc2 Rfe8 21. Ne2 Bxb2 22. Qxb2 Ne5 {0-1 (33) Pang,T (2290)-Yakubboev,N (2521) Manavgat 2018} *